bitfinex-derivatives/quotes_BNBF0:USTF0_20250609
["timestamp","ask_amount","ask_price","bid_price","bid_amount"]
[1749506931884,1.09193296,666.94,666.16,0.30022817]
[1749506932186,1.09193296,666.93,666.16,0.30022817]
[1749506932385,2.12991204,667.0,666.16,0.30022817]
[1749506932687,2.12991204,666.99,666.16,0.30022817]
[1749506932887,1.12169969,667.04,666.16,0.30022817]
[1749506932888,2.63686963,666.98,666.16,0.30022817]
[1749506933089,2.63686963,666.97,666.16,0.30022817]
[1749506933285,2.63686963,666.96,666.16,0.30022817]
[1749506933589,2.63686963,666.95,666.16,0.30022817]
[1749506933784,2.63686963,666.94,666.16,0.30022817]
[1749506933986,2.63703978,666.93,666.16,0.30022817]
[1749506934190,1.59886231,666.92,666.16,0.30022817]
[1749506934390,1.09193296,666.91,666.16,0.30022817]
[1749506934689,2.63695246,667.07,666.16,0.30022817]
[1749506934883,1.59885189,667.06,666.16,0.30022817]
[1749506935085,1.09193296,667.05,666.16,0.30022817]
[1749506935386,1.09193296,667.04,666.16,0.30022817]
[1749506935685,1.09193296,667.03,666.16,0.30022817]
[1749506935890,1.09193296,667.02,666.16,0.30022817]
[1749506936086,1.09193296,667.01,666.16,0.30022817]
[1749506936284,1.09193296,667.0,666.16,0.30022817]
[1749506936489,1.09193296,666.99,666.16,0.30022817]
[1749506936689,1.09193296,666.98,666.16,0.30022817]
[1749506936889,1.09193296,666.97,666.16,0.30022817]
[1749506937089,1.09193296,666.96,666.16,0.30022817]
[1749506937293,1.09193296,666.95,666.16,0.30022817]
[1749506937594,1.09193296,666.94,666.16,0.30022817]
[1749506937793,1.09193296,666.93,666.16,0.30022817]
[1749506937991,2.13030621,667.08,666.16,0.30022817]
[1749506938189,1.59906341,667.07,666.16,0.30022817]
[1749506938392,1.09193296,667.06,666.16,0.30022817]
[1749506938588,1.09193296,667.05,666.16,0.30022817]
[1749506938794,1.09193296,667.04,666.16,0.30022817]
[1749506938991,1.09193296,667.03,666.16,0.30022817]
[1749506939292,1.09193296,667.02,666.16,0.30022817]
[1749506939496,1.09193296,667.01,666.16,0.30022817]
[1749506939793,1.09193296,667.0,666.16,0.30022817]
[1749506939995,1.09193296,666.99,666.16,0.30022817]
[1749506940191,1.09193296,666.98,666.16,0.30022817]
[1749506940397,1.09193296,666.97,666.16,0.30022817]
[1749506940693,1.09193296,666.96,666.16,0.30022817]
[1749506940891,1.09193296,666.95,666.16,0.30022817]
[1749506941198,1.09193296,666.94,665.54,0.26102708]
[1749506941393,1.09193296,666.93,665.56,0.30049882]
[1749506941596,1.03844396,666.99,665.56,0.30049882]
[1749506941597,1.09193296,666.92,665.56,0.30049882]
[1749506941797,1.09193296,666.91,665.56,0.30049882]
[1749506941994,1.09193296,666.9,665.56,0.30049882]
[1749506942195,1.09193296,666.89,665.56,0.30049882]
[1749506942393,1.09193296,666.88,665.56,0.30049882]
[1749506942693,1.03848016,666.95,665.56,0.30049882]
[1749506942694,1.09193296,666.87,665.56,0.30049882]
[1749506942894,1.12169969,666.96,665.56,0.30049882]
[1749506942895,1.09193296,666.86,665.56,0.30049882]
[1749506943098,1.09193296,666.85,665.56,0.30049882]
[1749506943298,1.09193296,666.84,665.56,0.30049882]
[1749506943495,1.12169969,666.86,665.56,0.30049882]
[1749506943496,1.09193296,666.83,665.56,0.30049882]
[1749506943695,1.09193296,666.82,665.56,0.30049882]
[1749506943899,2.63576004,666.83,665.56,0.30049882]
[1749506944098,2.63576004,666.82,665.56,0.30049882]
[1749506944299,2.63576004,666.81,665.56,0.30049882]
[1749506944599,2.63532859,666.8,665.56,0.30049882]
[1749506944895,2.6353287,666.79,665.56,0.30049882]
[1749506945100,2.12905909,666.78,665.56,0.30049882]
[1749506945299,2.12905909,666.77,665.56,0.30049882]
[1749506945598,2.12768699,666.76,665.56,0.30049882]
[1749506945796,2.12712432,666.75,665.56,0.30049882]
[1749506946094,1.09193296,666.74,665.56,0.30049882]
[1749506946301,1.59787575,666.86,665.56,0.30049882]
[1749506946499,1.09193296,666.85,665.56,0.30049882]
[1749506946697,1.59787575,666.85,665.56,0.30049882]
[1749506947299,1.59765911,666.85,665.56,0.30049882]
[1749506947800,2.63261597,666.85,665.56,0.30049882]
[1749506948094,2.63261792,666.84,665.56,0.30049882]
[1749506948297,2.63261792,666.83,665.56,0.30049882]
[1749506948500,2.63261792,666.82,665.56,0.30049882]
[1749506948694,0.50572765,666.81,665.56,0.30049882]
[1749506948895,2.63190264,666.82,665.56,0.30049882]
[1749506949197,1.5397614,666.81,665.56,0.30049882]
[1749506949497,0.50552248,666.81,665.56,0.30049882]
[1749506950498,2.6316963,666.82,665.56,0.30049882]
[1749506950697,1.53952766,666.81,665.56,0.30049882]
[1749506950902,0.50545835,666.81,665.56,0.30049882]
[1749506951597,0.50545844,666.81,665.56,0.30049882]
[1749506952705,2.12544819,666.82,665.56,0.30049882]
[1749506952902,1.53912355,666.81,665.56,0.30049882]
[1749506953106,0.50560922,666.81,665.56,0.30049882]
[1749506953306,0.50560797,666.81,665.56,0.30049882]
[1749506954306,2.63105322,666.82,665.56,0.30049882]
[1749506954503,1.53912026,666.81,665.56,0.30049882]
[1749506954704,1.09193296,666.82,665.56,0.30049882]
[1749506955009,0.50560374,666.82,665.56,0.30049882]
[1749506955208,1.338,666.83,665.56,0.30049882]
[1749506956106,2.93555342,666.83,665.56,0.30049882]
[1749506956310,2.63085857,666.82,665.56,0.30049882]
[1749506956511,1.09193296,666.82,665.56,0.30049882]
[1749506956711,2.63085857,666.82,665.56,0.30049882]
[1749506957010,2.12523811,666.81,665.56,0.30049882]
[1749506957208,2.12523811,666.8,665.56,0.30049882]
[1749506957512,2.12523811,666.79,665.56,0.30049882]
[1749506957713,2.12523811,666.78,665.56,0.30049882]
[1749506958009,1.09193296,666.77,665.56,0.30049882]
[1749506958410,1.269,666.78,665.56,0.30049882]
[1749506959114,3.39410201,666.78,665.56,0.30049882]
[1749506959311,2.12510201,666.77,665.56,0.30049882]
[1749506959515,1.09042776,666.76,665.56,0.30049882]
[1749506959714,1.09042776,666.77,665.56,0.30049882]
[1749506960215,1.269,666.78,665.56,0.30049882]
[1749506961215,2.35942776,666.78,665.56,0.30049882]
[1749506961416,1.09042776,666.77,665.56,0.30049882]
[1749506961612,1.269,666.78,665.56,0.30049882]
[1749506962419,2.35942776,666.78,665.56,0.30049882]
[1749506962624,1.09042776,666.77,665.56,0.30049882]
[1749506963315,1.269,666.78,665.56,0.30049882]
[1749506970724,1.269,666.78,665.57,3.68287609]
[1749506971023,1.269,666.78,665.59,0.30048528]
[1749506971220,1.269,666.78,665.6,3.68287609]
[1749506971422,1.269,666.78,665.62,0.30047174]
[1749506978026,1.269,666.78,665.68,0.26113089]
[1749506978230,1.269,666.78,665.7,0.30043563]
[1749506979730,2.35883224,666.78,665.7,0.30043563]
[1749506979928,1.08983224,666.77,665.7,0.30043563]
[1749506980329,1.269,666.78,665.7,0.30043563]
[1749506981533,1.08983224,666.77,665.7,0.30043563]
[1749506981734,1.08983224,666.76,665.7,0.30043563]
[1749506981931,1.08983224,666.75,665.7,0.30043563]
[1749506982131,1.08983224,666.74,665.7,0.30043563]
[1749506982330,2.63681976,666.75,665.7,0.30043563]
[1749506982533,1.08983224,666.74,665.7,0.30043563]
[1749506982833,1.08983224,666.73,665.7,0.30043563]
[1749506983031,1.08983224,666.76,665.7,0.30043563]
[1749506983231,1.08983224,666.75,665.7,0.30043563]
[1749506983535,1.08983224,666.74,665.7,0.30043563]
[1749506983734,1.08983224,666.73,665.7,0.30043563]
[1749506983935,1.08983224,666.72,665.7,0.30043563]
[1749506984136,1.08983224,666.75,665.7,0.30043563]
[1749506984332,1.08983224,666.74,665.7,0.30043563]
[1749506984633,1.08983224,666.73,665.7,0.30043563]
[1749506984833,1.08983224,666.72,665.7,0.30043563]
[1749506985130,1.08983224,666.71,665.7,0.30043563]
[1749506985336,2.12693288,666.74,665.7,0.30043563]
[1749506985534,1.08983224,666.73,665.7,0.30043563]
[1749506985835,2.12689288,666.77,665.7,0.30043563]
[1749506986037,1.08983224,666.77,665.7,0.30043563]
[1749506986334,2.12681809,666.77,665.7,0.30043563]
[1749506986637,2.12681865,666.76,665.7,0.30043563]
[1749506986837,1.08983224,666.75,665.7,0.30043563]
[1749506987037,1.269,666.78,665.7,0.30043563]
[1749506987038,2.12681563,666.77,665.7,0.30043563]
[1749506987337,1.08983224,666.77,665.7,0.30043563]
[1749506987833,1.269,666.78,665.7,0.30043563]
[1749506988438,1.08983224,666.77,665.7,0.30043563]
[1749506988638,1.03654368,666.77,665.7,0.30043563]
[1749506988836,2.12637592,666.77,665.7,0.30043563]
[1749506989039,1.03654368,666.76,665.7,0.30043563]
[1749506989239,1.08983224,666.77,665.7,0.30043563]
[1749506989441,2.12637649,666.77,665.7,0.30043563]
[1749506989641,2.12637649,666.76,665.7,0.30043563]
[1749506989940,1.08983224,666.75,665.7,0.30043563]
[1749506990137,2.12597771,666.77,665.7,0.30043563]
[1749506990340,1.03614547,666.76,665.7,0.30043563]
[1749506990537,1.03614591,666.76,665.7,0.30043563]
[1749506990742,1.09328016,666.77,665.7,0.30043563]
[1749506990942,2.12942354,666.77,665.7,0.30043563]
[1749506991237,1.03614338,666.76,665.7,0.30043563]
[1749506991439,2.12942354,666.77,665.7,0.30043563]
[1749506991639,1.03620823,666.76,665.7,0.30043563]
[1749506991838,1.09328016,666.77,665.7,0.30043563]
[1749506992039,1.269,666.78,665.7,0.30043563]
[1749506992844,3.90766565,666.78,665.7,0.30043563]
[1749506993143,2.12944763,666.77,665.7,0.30043563]
[1749506993541,1.09328016,666.77,665.7,0.30043563]
[1749506994440,2.12914919,666.77,665.7,0.30043563]
[1749506994643,1.03586903,666.76,665.7,0.30043563]
[1749506994844,2.12914919,666.77,665.7,0.30043563]
[1749506995244,1.09328016,666.76,665.7,0.30043563]
[1749506995645,1.60268027,666.77,665.7,0.30043563]
[1749506995947,1.09328016,666.76,665.7,0.30043563]
[1749506997445,1.09328016,666.75,665.7,0.30043563]
[1749506997744,1.269,666.78,665.7,0.30043563]
[1749506997745,1.09328016,666.77,665.7,0.30043563]
[1749506997946,1.09328016,666.76,665.7,0.30043563]
[1749506998148,1.09328016,666.75,665.7,0.30043563]
[1749506998346,1.09328016,666.76,665.7,0.30043563]
[1749506998547,1.09328016,666.75,665.7,0.30043563]
[1749506998950,1.09328016,666.74,665.7,0.30043563]
[1749506999253,2.63922702,666.76,665.7,0.30043563]
[1749506999552,2.12965735,666.75,665.7,0.30043563]
[1749506999748,2.12965735,666.74,665.7,0.30043563]
[1749507000048,2.12994007,666.73,665.7,0.30043563]
[1749507000250,2.12994007,666.72,665.7,0.30043563]
[1749507000451,1.09328016,666.71,665.7,0.30043563]
[1749507000747,2.12968812,666.82,665.7,0.30043563]
[1749507000948,2.63940884,666.81,665.7,0.30043563]
[1749507001252,1.338,666.83,665.7,0.30043563]
[1749507001253,1.60299413,666.8,665.7,0.30043563]
[1749507001552,1.09328016,666.79,665.7,0.30043563]
[1749507001745,1.09328016,666.78,665.7,0.30043563]
[1749507002048,1.09328016,666.77,665.7,0.30043563]
[1749507002248,1.09328016,666.76,665.7,0.30043563]
[1749507002452,1.09328016,666.75,665.7,0.30043563]
[1749507002652,1.09328016,666.74,665.7,0.30043563]
[1749507002849,1.60297695,666.77,665.7,0.30043563]
[1749507003051,1.09328016,666.76,665.7,0.30043563]
[1749507003247,1.09328016,666.75,665.7,0.30043563]
[1749507003448,1.09328016,666.74,665.7,0.30043563]
[1749507003647,1.09328016,666.73,665.7,0.30043563]
[1749507003949,0.50969679,666.77,665.7,0.30043563]
[1749507003950,1.09328016,666.72,665.7,0.30043563]
[1749507004149,1.09328016,666.76,665.7,0.30043563]
[1749507004350,1.09328016,666.75,665.7,0.30043563]
[1749507004548,1.09328016,666.74,665.7,0.30043563]
[1749507004754,1.09328016,666.73,665.7,0.30043563]
[1749507005054,2.40228016,666.72,665.7,0.30043563]
[1749507005256,1.09328016,666.71,665.7,0.30043563]
[1749507005450,1.09328016,666.7,665.7,0.30043563]
[1749507005655,1.09328016,666.69,665.7,0.30043563]
[1749507005857,1.09328016,666.68,665.7,0.30043563]
[1749507006051,1.09328016,666.67,665.7,0.30043563]
[1749507006353,1.09328016,666.66,665.7,0.30043563]
[1749507006555,1.09328016,666.65,665.7,0.30043563]
[1749507006759,1.09328016,666.64,665.7,0.30043563]
[1749507006960,1.09328016,666.63,665.7,0.30043563]
[1749507007258,1.09328016,666.62,665.7,0.30043563]
[1749507007455,2.12814604,666.7,665.7,0.30043563]
[1749507007655,2.63771252,666.69,665.7,0.30043563]
[1749507007859,1.309,666.72,665.7,0.30043563]
[1749507007860,1.60284664,666.68,665.7,0.30043563]
[1749507008156,1.09328016,666.67,665.7,0.30043563]
[1749507008458,1.09328016,666.66,665.7,0.30043563]
[1749507008659,1.09328016,666.65,665.7,0.30043563]
[1749507008858,1.09328016,666.64,665.7,0.30043563]
[1749507009055,1.09328016,666.63,665.7,0.30043563]
[1749507009354,1.09328016,666.62,665.7,0.30043563]
[1749507009555,1.09328016,666.61,665.7,0.30043563]
[1749507009755,1.09328016,666.6,665.7,0.30043563]
[1749507010055,1.09328016,666.59,665.7,0.30043563]
[1749507010253,1.09328016,666.58,665.7,0.30043563]
[1749507010457,1.09328016,666.57,665.7,0.30043563]
[1749507010657,1.09328016,666.56,665.7,0.30043563]
[1749507010858,1.09328016,666.55,665.7,0.30043563]
[1749507011059,1.09328016,666.54,665.7,0.30043563]
[1749507011256,1.09328016,666.7,665.7,0.30043563]
[1749507011457,1.09328016,666.69,665.7,0.30043563]
[1749507011657,1.09328016,666.68,665.7,0.30043563]
[1749507011860,1.09328016,666.67,665.7,0.30043563]
[1749507012160,1.09328016,666.66,665.7,0.30043563]
[1749507012362,1.09328016,666.65,665.7,0.30043563]
[1749507012557,1.09328016,666.64,665.7,0.30043563]
[1749507012758,1.09328016,666.63,665.7,0.30043563]
[1749507013057,1.09328016,666.62,665.7,0.30043563]
[1749507013362,1.09328016,666.61,665.7,0.30043563]
[1749507013562,1.09328016,666.6,665.7,0.30043563]
[1749507013857,1.09328016,666.59,665.7,0.30043563]
[1749507014062,1.09328016,666.58,665.7,0.30043563]
[1749507014260,2.63646096,666.63,665.7,0.30043563]
[1749507014564,1.60189489,666.62,665.7,0.30043563]
[1749507014864,1.09328016,666.61,665.7,0.30043563]
[1749507015064,1.09328016,666.6,665.7,0.30043563]
[1749507015265,1.09328016,666.59,665.7,0.30043563]
[1749507015564,1.09328016,666.69,665.7,0.30043563]
[1749507015761,1.09328016,666.68,665.7,0.30043563]
[1749507016061,1.09328016,666.67,665.7,0.30043563]
[1749507016266,1.09328016,666.66,665.7,0.30043563]
[1749507016560,1.09328016,666.65,665.7,0.30043563]
[1749507016766,1.09328016,666.64,665.7,0.30043563]
[1749507017065,1.09328016,666.63,665.7,0.30043563]
[1749507017260,2.63420272,666.66,665.7,0.30043563]
[1749507017461,2.63420272,666.65,665.7,0.30043563]
[1749507017663,2.12567651,666.64,665.7,0.30043563]
[1749507017862,1.09328016,666.63,665.7,0.30043563]
[1749507018064,1.09328016,666.71,665.7,0.30043563]
[1749507018267,1.09328016,666.7,665.7,0.30043563]
[1749507018462,1.09328016,666.69,665.7,0.30043563]
[1749507018662,1.09328016,666.68,665.7,0.30043563]
[1749507018965,1.09328016,666.67,665.7,0.30043563]
[1749507019167,2.63369632,666.69,665.7,0.30043563]
[1749507019363,2.63399849,666.68,665.7,0.30043563]
[1749507019562,2.63399849,666.67,665.7,0.30043563]
[1749507019764,2.63399849,666.66,665.7,0.30043563]
[1749507019966,2.63399849,666.65,665.7,0.30043563]
[1749507020162,2.63399849,666.64,665.7,0.30043563]
[1749507020369,2.63399849,666.63,665.7,0.30043563]
[1749507020567,2.63399849,666.62,665.7,0.30043563]
[1749507020767,2.12597868,666.61,665.7,0.30043563]
[1749507021067,1.09328016,666.6,665.7,0.30043563]
[1749507021270,1.09328016,666.69,665.7,0.30043563]
[1749507021469,2.12499703,666.7,665.7,0.30043563]
[1749507021668,1.60116299,666.69,665.7,0.30043563]
[1749507021868,1.12079982,666.71,665.7,0.30043563]
[1749507021869,2.63288862,666.7,665.7,0.30043563]
[1749507022164,2.63288862,666.69,665.7,0.30043563]
[1749507022365,2.63288862,666.68,665.7,0.30043563]
[1749507022669,1.60109261,666.67,665.7,0.30043563]
[1749507022866,1.09328016,666.66,665.7,0.30043563]
[1749507023063,1.09328016,666.65,665.7,0.30043563]
[1749507023268,0.50781296,666.7,665.7,0.30043563]
[1749507023269,1.09328016,666.64,665.7,0.30043563]
[1749507023469,1.09328016,666.69,665.7,0.30043563]
[1749507023665,1.09328016,666.68,665.7,0.30043563]
[1749507023865,1.09328016,666.67,665.7,0.30043563]
[1749507024069,1.09328016,666.66,665.7,0.30043563]
[1749507024268,0.50781469,666.7,665.7,0.30043563]
[1749507024269,1.09328016,666.65,665.7,0.30043563]
[1749507024467,1.09328016,666.69,665.7,0.30043563]
[1749507024671,1.09328016,666.68,665.7,0.30043563]
[1749507024868,1.09328016,666.67,665.7,0.30043563]
[1749507025068,1.09328016,666.66,665.7,0.30043563]
[1749507025268,1.09328016,666.65,665.7,0.30043563]
[1749507025472,1.09328016,666.64,665.7,0.30043563]
[1749507025669,1.09328016,666.69,665.7,0.30043563]
[1749507025869,1.09328016,666.68,665.7,0.30043563]
[1749507026073,1.09328016,666.67,665.7,0.30043563]
[1749507026374,1.09328016,666.66,665.7,0.30043563]
[1749507026668,1.09328016,666.65,665.7,0.30043563]
[1749507026872,1.09328016,666.64,665.7,0.30043563]
[1749507027073,1.09328016,666.63,665.7,0.30043563]
[1749507027275,1.12079982,666.7,665.7,0.30043563]
[1749507027276,1.09328016,666.62,665.7,0.30043563]
[1749507027470,1.09328016,666.61,665.7,0.30043563]
[1749507027670,1.09328016,666.6,665.7,0.30043563]
[1749507027870,1.09328016,666.59,665.7,0.30043563]
[1749507028073,1.09328016,666.58,665.7,0.30043563]
[1749507028273,1.09328016,666.57,665.7,0.30043563]
[1749507028472,1.09328016,666.56,665.7,0.30043563]
[1749507028671,1.09328016,666.55,665.7,0.30043563]
[1749507028874,1.09328016,666.54,665.7,0.30043563]
[1749507029177,1.09328016,666.53,665.7,0.30043563]
[1749507029373,1.09328016,666.52,665.7,0.30043563]
[1749507029573,1.09328016,666.57,665.7,0.30043563]
[1749507029771,1.09328016,666.56,665.7,0.30043563]
[1749507029976,1.09328016,666.55,665.7,0.30043563]
[1749507030173,1.09328016,666.54,665.7,0.30043563]
[1749507030373,1.09328016,666.53,665.7,0.30043563]
[1749507030573,1.09328016,666.52,665.7,0.30043563]
[1749507030872,1.12079982,666.56,665.47,0.26122694]
[1749507031077,2.21407998,666.55,665.47,0.26122694]
[1749507031276,3.75132901,666.54,665.47,0.26122694]
[1749507031477,1.12079982,666.52,665.47,0.26122694]
[1749507031675,1.09328016,666.51,665.47,0.26122694]
[1749507031873,1.09328016,666.5,665.47,0.26122694]
[1749507032078,1.09328016,666.49,665.47,0.26122694]
[1749507032278,1.09328016,666.48,665.47,0.26122694]
[1749507032480,1.09328016,666.47,665.47,0.26122694]
[1749507032678,2.62960009,666.49,665.47,0.26122694]
[1749507032875,2.62984415,666.48,665.47,0.26122694]
[1749507033080,2.62984382,666.47,665.47,0.26122694]
[1749507033379,2.6298444,666.46,665.47,0.26122694]
[1749507033674,2.6298444,666.45,665.47,0.26122694]
[1749507033879,2.12226019,666.44,665.47,0.26122694]
[1749507034078,2.12226019,666.43,665.47,0.26122694]
[1749507034278,1.09328016,666.42,665.47,0.26122694]
[1749507034480,2.12156079,666.51,665.47,0.26122694]
[1749507034674,2.12192355,666.5,665.47,0.26122694]
[1749507034876,2.62845344,666.49,665.47,0.26122694]
[1749507035077,2.62845344,666.48,665.47,0.26122694]
[1749507035381,2.62845358,666.47,665.47,0.26122694]
[1749507035579,2.62845358,666.46,665.47,0.26122694]
[1749507035776,2.62845358,666.45,665.47,0.26122694]
[1749507036077,1.09328016,666.44,665.47,0.26122694]
[1749507036380,2.62767462,666.51,665.47,0.26122694]
[1749507036680,2.62767306,666.5,665.47,0.26122694]
[1749507036876,2.62767311,666.49,665.47,0.26122694]
[1749507037080,2.62767311,666.48,665.47,0.26122694]
[1749507037281,2.62767311,666.47,665.47,0.26122694]
[1749507037483,2.62767311,666.46,665.47,0.26122694]
[1749507037680,2.62767311,666.45,665.47,0.26122694]
[1749507037879,2.62746074,666.44,665.47,0.26122694]
[1749507038079,2.62746087,666.43,665.47,0.26122694]
[1749507038284,2.12084484,666.42,665.47,0.26122694]
[1749507038481,2.12084497,666.41,665.47,0.26122694]
[1749507038679,2.12084497,666.4,665.47,0.26122694]
[1749507038983,2.12084497,666.39,665.47,0.26122694]
[1749507039183,2.12084497,666.38,665.47,0.26122694]
[1749507039384,2.12084497,666.37,664.67,3.68287609]
[1749507039586,2.12041149,666.36,664.69,0.30089214]
[1749507039783,1.09328016,666.35,665.39,0.26135642]
[1749507040083,2.62706817,666.51,664.69,0.30089214]
[1749507040284,2.12041625,666.5,665.39,0.2613682]
[1749507040587,2.6270727,666.49,665.39,0.2613682]
[1749507040787,2.6270727,666.48,664.69,0.30089214]
[1749507040988,2.6270727,666.47,665.39,0.26135348]
[1749507041183,2.62689749,666.46,664.69,0.30089214]
[1749507041387,2.62689751,666.45,664.69,0.30089214]
[1749507041684,2.11902561,666.44,665.39,0.26135642]
[1749507041983,2.62550758,666.43,664.69,0.30089214]
[1749507042189,2.62550758,666.42,665.12,0.2613682]
[1749507042487,2.11902632,666.41,665.13,0.30069309]
[1749507042688,2.11902632,666.4,665.13,0.30069309]
[1749507042882,2.11902632,666.39,665.13,0.30069309]
[1749507043087,1.09328016,666.38,665.13,0.30069309]
[1749507043283,2.62759125,666.5,665.13,0.30069309]
[1749507043484,1.5995407,666.49,665.13,0.30069309]
[1749507043686,1.09328016,666.48,665.13,0.30069309]
[1749507043885,1.09328016,666.47,665.13,0.30069309]
[1749507044084,1.09328016,666.46,665.13,0.30069309]
[1749507044384,1.09328016,666.45,665.13,0.30069309]
[1749507044689,1.09328016,666.44,665.13,0.30069309]
[1749507044988,1.09328016,666.43,665.13,0.30069309]
[1749507045188,1.09328016,666.42,665.13,0.30069309]
[1749507045389,1.09328016,666.41,665.13,0.30069309]
[1749507045685,1.09328016,666.4,665.13,0.30069309]
[1749507045882,1.09328016,666.39,665.13,0.30069309]
[1749507046083,2.12190344,666.4,665.13,0.30069309]
[1749507046385,2.12190339,666.39,665.13,0.30069309]
[1749507046588,2.12190418,666.38,665.13,0.30069309]
[1749507046784,2.12190418,666.37,665.13,0.30069309]
[1749507047084,2.12190418,666.36,665.13,0.30069309]
[1749507047285,2.12190418,666.35,665.13,0.30069309]
[1749507047485,1.09328016,666.34,665.13,0.30069309]
[1749507047785,2.62804115,666.46,665.13,0.30069309]
[1749507048087,1.59936044,666.45,665.13,0.30069309]
[1749507048385,1.09328016,666.44,665.13,0.30069309]
[1749507048686,1.09328016,666.43,665.13,0.30069309]
[1749507048888,1.09328016,666.42,665.13,0.30069309]
[1749507049190,1.09328016,666.41,665.13,0.30069309]
[1749507049388,1.09328016,666.4,665.13,0.30069309]
[1749507049587,1.09328016,666.39,665.13,0.30069309]
[1749507049787,1.09328016,666.38,665.13,0.30069309]
[1749507049985,1.09328016,666.37,665.13,0.30069309]
[1749507050290,1.09328016,666.36,665.13,0.30069309]
[1749507050485,1.09328016,666.35,665.13,0.30069309]
[1749507050685,1.09328016,666.34,665.13,0.30069309]
[1749507050883,1.59954063,666.41,665.13,0.30069309]
[1749507051086,1.08724559,666.4,665.13,0.30069309]
[1749507051284,0.50626047,666.41,665.13,0.30069309]
[1749507051285,1.08724559,666.39,665.13,0.30069309]
[1749507051585,1.08724559,666.38,665.13,0.30069309]
[1749507051785,1.08724559,666.37,665.13,0.30069309]
[1749507051989,1.08724559,666.36,665.13,0.30069309]
[1749507052189,1.08724559,666.35,665.13,0.30069309]
[1749507052484,1.08724559,666.34,665.13,0.30069309]
[1749507052685,1.08724559,666.33,665.13,0.30069309]
[1749507052885,1.08724559,666.32,665.13,0.30069309]
[1749507053088,1.08724559,666.31,665.13,0.30069309]
[1749507053293,1.08724559,666.3,665.13,0.30069309]
[1749507053589,1.08724559,666.29,665.13,0.30069309]
[1749507053789,1.08724559,666.28,665.13,0.30069309]
[1749507053985,1.08724559,666.27,665.13,0.30069309]
[1749507054188,1.08724559,666.26,665.13,0.30069309]
[1749507054387,1.08724559,666.25,665.13,0.30069309]
[1749507054586,1.08724559,666.24,665.13,0.30069309]
[1749507054890,1.08724559,666.23,665.13,0.30069309]
[1749507055186,1.08724559,666.22,665.13,0.30069309]
[1749507055390,1.08724559,666.21,665.13,0.30069309]
[1749507055686,2.62283865,666.41,665.13,0.30069309]
[1749507055885,2.62283865,666.4,665.13,0.30069309]
[1749507056088,1.59369373,666.39,665.13,0.30069309]
[1749507056287,1.08724559,666.38,665.13,0.30069309]
[1749507056486,1.08724559,666.37,665.13,0.30069309]
[1749507056687,1.08724559,666.36,665.13,0.30069309]
[1749507056885,1.08724559,666.35,665.13,0.30069309]
[1749507057088,1.08724559,666.34,665.13,0.30069309]
[1749507057283,1.08724559,666.33,665.13,0.30069309]
[1749507057489,1.08724559,666.32,665.13,0.30069309]
[1749507057689,1.08724559,666.31,665.13,0.30069309]
[1749507057886,1.08724559,666.3,665.13,0.30069309]
[1749507058188,1.08724559,666.29,665.13,0.30069309]
[1749507058386,1.08724559,666.28,665.13,0.30069309]
[1749507058689,1.08724559,666.27,665.13,0.30069309]
[1749507058889,1.08724559,666.26,665.13,0.30069309]
[1749507059086,1.08724559,666.25,665.13,0.30069309]
[1749507059285,1.08724559,666.24,665.13,0.30069309]
[1749507059485,1.08724559,666.23,665.13,0.30069309]
[1749507059687,2.11733714,666.29,665.13,0.30069309]
[1749507059887,2.11727341,666.28,665.13,0.30069309]
[1749507060190,2.1179551,666.27,665.13,0.30069309]
[1749507060386,1.08724559,666.26,665.13,0.30069309]
[1749507060590,1.08724559,666.25,665.13,0.30069309]
[1749507060790,1.08724559,666.24,665.13,0.30069309]
[1749507060993,1.08724559,666.41,665.13,0.30069309]
[1749507061186,1.08724559,666.4,665.13,0.30069309]
[1749507061388,1.08724559,666.39,665.13,0.30069309]
[1749507061589,1.08724559,666.38,665.13,0.30069309]
[1749507061791,1.08724559,666.37,665.13,0.30069309]
[1749507062088,1.08724559,666.36,665.13,0.30069309]
[1749507062287,1.08724559,666.35,665.13,0.30069309]
[1749507062487,2.62455412,666.42,665.13,0.30069309]
[1749507062692,1.59406635,666.41,665.13,0.30069309]
[1749507062888,1.08724559,666.41,665.13,0.30069309]
[1749507063294,2.11782889,666.42,665.13,0.30069309]
[1749507063495,1.08724559,666.42,665.13,0.30069309]
[1749507064090,1.03388812,666.42,665.13,0.30069309]
[1749507064594,2.12113371,666.42,665.13,0.30069309]
[1749507064790,1.08724559,666.42,665.13,0.30069309]
[1749507065389,1.03514858,666.42,665.13,0.30069309]
[1749507065592,1.691,666.43,665.13,0.30069309]
[1749507066092,1.279,666.42,665.13,0.30069309]
[1749507066391,3.4014403,666.42,665.13,0.30069309]
[1749507066695,2.1224403,666.41,665.13,0.30069309]
[1749507066895,1.08724559,666.41,665.13,0.30069309]
[1749507067092,1.03456727,666.41,665.13,0.30069309]
[1749507067292,2.12180768,666.41,665.13,0.30069309]
[1749507067597,1.08724559,666.41,665.13,0.30069309]
[1749507067797,3.40081889,666.42,665.13,0.30069309]
[1749507067999,2.12181889,666.41,665.13,0.30069309]
[1749507068599,1.08724559,666.41,665.13,0.30069309]
[1749507068800,3.4036114,666.42,665.13,0.30069309]
[1749507068995,2.12460674,666.41,665.13,0.30069309]